[Event "V Sunway Sitges Open 2018"]
[Site "Sitges"]
[Date "2018.12.14"]
[Round "1"]
[White "Haisma, Henk"]
[Black "Isaksson, Max"]
[Result "1-0"]
[ECO "A00"]
[WhiteElo "1807"]
[BlackElo "1409"]
[Annotator "NA RC"]
[PlyCount "91"]
[EventDate "2018.12.14"]
[EventType "swiss"]
[EventCountry "ESP"]
[SourceTitle "playchess.com"]
[Source "ChessBase"]
[SourceQuality "1"]
[TimeControl "40/5400+30:1800+30"]

1. b4 {[%emt 0:00:54]} d5 {[%emt 0:00:00]} 2. Bb2 {[%emt 0:00:13]} Nf6 {[%emt 0:00:00]} 3. a3 {[%emt 0:00:04]} Bf5 {[%emt 0:00:00]} 4. e3 {[%emt 0:00:15]} e6 {[%emt 0:00:00]} 5. Nf3 {[%emt 0:00:38]} Bd6 {[%emt 0:00:09]} 6. c4 {[%emt 0:00:06]} c6 {[%emt 0:01:55]} 7. d3 {[%emt 0:02:17]} Nbd7 {[%emt 0:00:58]} 8. Nbd2 {[%emt 0:03:57]} O-O {[%emt 0:01:46]} 9. d4 {[%emt 0:03:21]} Ne4 {[%emt 0:02:23]} 10. Be2 {[%emt 0:02:12]} Qf6 {[%emt 0:02:32]} 11. g3 {[%emt 0:09:39]} Nxd2 {[%emt 0:27:39]} 12. Nxd2 {[%emt 0:05:00]} Qg6 {[%emt 0:06:47]} 13. Bh5 {[%emt 0:10:23]} Qh6 {[%emt 0:01:55]} 14. c5 {[%emt 0:12:20]} Bc7 {[%emt 0:00:50]} 15. f4 {[%emt 0:01:36]} Nf6 {[%emt 0:10:02]} 16. Bf3 {[%emt 0:00:03]} Qh3 {[%emt 0:02:57]} 17. Qe2 {[%emt 0:01:56]} Bg4 {[%emt 0:05:38]} 18. O-O-O {[%emt 0:06:22]} Bxf3 {[%emt 0:00:19]} 19. Nxf3 {[%emt 0:02:06]} a5 {[%emt 0:02:23]} 20. Qe1 {[%emt 0:05:27]} Qg4 {[%emt 0:04:57]} 21. Ng5 {[%emt 0:03:30]} h6 {[%emt 0:01:47]} 22. h3 {[%emt 0:00:06]} Qf5 {[%emt 0:00:37]} 23. g4 {[%emt 0:00:09]} Qg6 {[%emt 0:00:18]} 24. Nf3 {[%emt 0:02:04]} Qe4 {[%emt 0:00:42]} 25. Ne5 {[%emt 0:03:46]} axb4 {[%emt 0:01:44]} 26. axb4 {[%emt 0:02:18]} Ra2 {[%emt 0:10:06]} 27. Nd3 {[%emt 0:01:03]} Rfa8 {[%emt 0:01:28]} 28. Qe2 {[%emt 0:03:21]} b6 {[%emt 0:02:42]} 29. Nf2 {[%emt 0:01:47]} Qh7 {[%emt 0:00:35]} 30. Qd3 {[%emt 0:00:50]} Qxd3 {[%emt 0:00:31]} 31. Nxd3 {[%emt 0:00:09]} b5 {[%emt 0:00:30]} 32. Nf2 {[%emt 0:02:17]} R8a4 {[%emt 0:01:03]} 33. Kb1 {[%emt 0:01:51]} Ra8 {[%emt 0:01:25]} 34. h4 {[%emt 0:00:55]} R2a4 {[%emt 0:00:35]} 35. Bc3 {[%emt 0:05:03]} Ra3 {[%emt 0:00:38]} 36. Kc2 {[%emt 0:01:47]} Ra2+ {[%emt 0:01:15]} 37. Bb2 {[%emt 0:00:09]} R8a3 {[%emt 0:02:57]} 38. Kb1 {[%emt 0:01:27]} Ra8 {[%emt 0:01:04]} 39. g5 {[%emt 0:00:03]} hxg5 {[%emt 0:00:33]} 40. hxg5 {[%emt 0:00:00]} Ne4 {[%emt 0:00:00]} 41. Nxe4 {[%emt 0:01:10]} dxe4 {[%emt 0:01:14]} 42. Rh3 {[%emt 0:00:52]} g6 {[%emt 0:00:11]} 43. Rdh1 {[%emt 0:02:33]} Kg7 {[%emt 0:01:54]} 44. d5+ {[%emt 0:03:34]} Rxb2+ {[%emt 0:01:31]} 45. Kxb2 {[%emt 0:00:21]} exd5 {[%emt 0:00:03]} 46. Rh7+ 1-0

[Event "V Sunway Sitges Open 2018"]
[Site "Sitges"]
[Date "2018.12.14"]
[Round "1"]
[White "Castells Pagan, Raul"]
[Black "Pedashenko, Anatoly"]
[Result "0-1"]
[ECO "D37"]
[WhiteElo "1745"]
[BlackElo "1985"]
[Annotator "NA RC"]
[PlyCount "60"]
[EventDate "2018.12.14"]
[EventType "swiss"]
[EventCountry "ESP"]
[SourceTitle "playchess.com"]
[Source "ChessBase"]
[SourceQuality "1"]
[TimeControl "40/5400+30:1800+30"]

1. d4 {[%emt 0:00:23]} Nf6 {[%emt 0:00:00]} 2. Nf3 {[%emt 0:00:32]} d5 {[%emt 0:01:22]} 3. c4 {[%emt 0:00:48]} e6 {[%emt 0:01:19]} 4. Nc3 {[%emt 0:01:00]} Be7 {[%emt 0:01:55]} 5. e3 {[%emt 0:01:08]} O-O {[%emt 0:00:53]} 6. Bd3 {[%emt 0:00:42]} b6 {[%emt 0:01:25]} 7. cxd5 {[%emt 0:04:45]} exd5 {[%emt 0:00:19]} 8. h3 {[%emt 0:02:30]} Bb7 {[%emt 0:00:44]} 9. O-O {[%emt 0:01:57]} Nbd7 {[%emt 0:00:41]} 10. Re1 {[%emt 0:04:26]} Ne4 {[%emt 0:02:18]} 11. Qc2 {[%emt 0:03:36]} Ndf6 {[%emt 0:01:48]} 12. Nd2 {[%emt 0:04:14]} Re8 {[%emt 0:04:18]} 13. Bb5 {[%emt 0:10:43]} Rf8 {[%emt 0:26:51]} 14. Bd3 {[%emt 0:00:44]} Ng5 {[%emt 0:01:51]} 15. f4 {[%emt 0:05:56]} Ne6 {[%emt 0:01:34]} 16. Nf3 {[%emt 0:11:20]} c5 {[%emt 0:04:03]} 17. f5 {[%emt 0:19:02]} Nc7 {[%emt 0:02:00]} 18. b3 {[%emt 0:01:34]} Re8 {[%emt 0:02:44]} 19. Bb2 {[%emt 0:02:21]} Bd6 {[%emt 0:04:15]} 20. g4 {[%emt 0:07:45]} Bg3 {[%emt 0:03:07]} 21. g5 {[%emt 0:06:12]} Bxe1 {[%emt 0:01:11]} 22. Rxe1 {[%emt 0:00:18]} Ne4 {[%emt 0:00:47]} 23. Qg2 {[%emt 0:03:35]} cxd4 {[%emt 0:02:28]} 24. Nxd4 {[%emt 0:01:25]} Nxg5 {[%emt 0:06:41]} 25. f6 {[%emt 0:01:37]} Qxf6 26. Rf1 {[%emt 0:00:28]} Qe5 {[%emt 0:06:30]} 27. Nf5 {[%emt 0:00:35]} h6 {[%emt 0:05:57]} 28. Ne4 {[%emt 0:01:00]} d4 {[%emt 0:00:40]} 29. Bxd4 {[%emt 0:01:34]} Bxe4 {[%emt 0:00:24]} 30. Bxe4 {[%emt 0:00:16]} Qxe4 {[%emt 0:00:20]} 0-1

[Event "V Sunway Sitges Open 2018"]
[Site "Sitges"]
[Date "2018.12.14"]
[Round "1"]
[White "Isaksson, Philip"]
[Black "Peredo Claros, Luis Gabriel"]
[Result "0-1"]
[ECO "C01"]
[WhiteElo "1459"]
[BlackElo "1813"]
[Annotator "NA RC"]
[PlyCount "44"]
[EventDate "2018.12.14"]
[EventType "swiss"]
[EventCountry "ESP"]
[SourceTitle "playchess.com"]
[Source "ChessBase"]
[SourceQuality "1"]
[TimeControl "40/5400+30:1800+30"]

1. e4 {[%emt 0:00:00]} e6 {[%emt 0:05:40]} 2. d4 {[%emt 0:00:00]} d5 {[%emt 0:00:12]} 3. exd5 {[%emt 0:00:00]} exd5 {[%emt 0:00:15]} 4. Bd3 {[%emt 0:00:00]} Bd6 {[%emt 0:00:59]} 5. Qf3 {[%emt 0:00:14]} Ne7 {[%emt 0:00:37]} 6. Ne2 {[%emt 0:00:18]} c6 {[%emt 0:00:14]} 7. c3 {[%emt 0:00:42]} Qc7 {[%emt 0:00:20]} 8. Bf4 {[%emt 0:01:06]} O-O 9. O-O Ng6 {[%emt 0:05:02]} 10. Bxd6 {[%emt 0:02:02]} Qxd6 {[%emt 0:00:16]} 11. Qg3 {[%emt 0:00:06]} Qd8 {[%emt 0:02:23]} 12. Nf4 {[%emt 0:07:40]} Nd7 {[%emt 0:00:37]} 13. Nd2 {[%emt 0:03:34]} Nf6 {[%emt 0:00:45]} 14. h3 {[%emt 0:02:52]} Bd7 {[%emt 0:00:37]} 15. Rae1 {[%emt 0:06:43]} Qb6 {[%emt 0:00:17]} 16. Nb3 {[%emt 0:03:47]} Rae8 {[%emt 0:01:00]} 17. Nxg6 {[%emt 0:05:08]} fxg6 {[%emt 0:25:02]} 18. Qd6 {[%emt 0:10:48]} Bc8 {[%emt 0:01:19]} 19. g4 {[%emt 0:16:55]} Ne4 {[%emt 0:11:44]} 20. Qh2 {[%emt 0:00:27]} Ng5 {[%emt 0:00:33]} 21. f4 {[%emt 0:00:54]} Rxe1 {[%emt 0:00:57]} 22. Rxe1 {[%emt 0:01:55]} Nf3+ 0-1

[Event "V Sunway Sitges Open 2018"]
[Site "Sitges"]
[Date "2018.12.14"]
[Round "1"]
[White "Stroup, James Howard"]
[Black "Jenny, Gerald"]
[Result "1/2-1/2"]
[ECO "D02"]
[WhiteElo "1394"]
[BlackElo "1807"]
[Annotator "NA RC"]
[PlyCount "62"]
[EventDate "2018.12.14"]
[EventType "swiss"]
[EventCountry "ESP"]
[SourceTitle "playchess.com"]
[Source "ChessBase"]
[SourceQuality "1"]
[TimeControl "40/5400+30:1800+30"]

1. d4 {[%emt 0:00:00]} d5 {[%emt 0:00:00]} 2. Nf3 {[%emt 0:00:04]} e6 {[%emt 0:00:00]} 3. Bf4 {[%emt 0:00:25]} c5 {[%emt 0:00:20]} 4. e3 {[%emt 0:00:21]} Nf6 {[%emt 0:00:37]} 5. c3 {[%emt 0:00:39]} a6 {[%emt 0:04:02]} 6. Bd3 {[%emt 0:01:47]} Bd6 {[%emt 0:01:02]} 7. Bg3 {[%emt 0:02:59]} O-O {[%emt 0:00:52]} 8. Nbd2 {[%emt 0:01:45]} Nc6 {[%emt 0:03:14]} 9. Qc2 {[%emt 0:05:19]} g6 {[%emt 0:06:55]} 10. Ne5 {[%emt 0:05:57]} Nh5 {[%emt 0:07:50]} 11. O-O-O {[%emt 0:09:13]} f5 {[%emt 0:06:15]} 12. Ndf3 {[%emt 0:03:31]} c4 {[%emt 0:02:05]} 13. Be2 {[%emt 0:02:30]} Na5 {[%emt 0:00:38]} 14. Bh4 {[%emt 0:02:25]} Be7 {[%emt 0:01:59]} 15. Bxe7 {[%emt 0:02:47]} Qxe7 {[%emt 0:00:09]} 16. h4 {[%emt 0:01:50]} Nf6 {[%emt 0:03:06]} 17. Rh2 {[%emt 0:03:55]} Ng4 {[%emt 0:02:41]} 18. Nxg4 {[%emt 0:06:02]} fxg4 {[%emt 0:00:06]} 19. Ne5 {[%emt 0:04:10]} Rxf2 {[%emt 0:00:14]} 20. Nxg4 {[%emt 0:00:39]} Rf8 {[%emt 0:00:11]} 21. Ne5 {[%emt 0:01:33]} Nc6 {[%emt 0:02:27]} 22. g4 {[%emt 0:04:33]} Nxe5 {[%emt 0:01:32]} 23. dxe5 {[%emt 0:00:15]} Qg7 {[%emt 0:00:09]} 24. Qd2 {[%emt 0:03:12]} Qxe5 {[%emt 0:01:05]} 25. Rdh1 {[%emt 0:00:31]} Bd7 {[%emt 0:02:56]} 26. Qd4 {[%emt 0:03:29]} Qxd4 {[%emt 0:03:40]} 27. exd4 {[%emt 0:00:14]} Rf4 {[%emt 0:00:09]} 28. Rf1 {[%emt 0:03:00]} Raf8 {[%emt 0:00:34]} 29. Rxf4 {[%emt 0:01:17]} Rxf4 {[%emt 0:00:01]} 30. Kd2 {[%emt 0:01:53]} Kg7 {[%emt 0:03:16]} 31. g5 {[%emt 0:02:00]} b6 {[%emt 0:13:11]} 1/2-1/2

[Event "V Sunway Sitges Open 2018"]
[Site "Sitges"]
[Date "2018.12.15"]
[Round "2"]
[White "Goormachtigh, Johan"]
[Black "Mabille, Natacha"]
[Result "1-0"]
[ECO "D52"]
[WhiteElo "2159"]
[BlackElo "1895"]
[Annotator "NA"]
[PlyCount "61"]
[EventDate "2018.12.14"]
[EventType "swiss"]
[EventCountry "ESP"]
[SourceTitle "playchess.com"]
[Source "ChessBase"]
[SourceQuality "1"]
[TimeControl "40/5400+30:1800+30"]

1. d4 {[%emt 0:00:00]} d5 {[%emt 0:12:38]} 2. Nf3 {[%emt 0:00:00]} Nf6 {[%emt 0:00:48]} 3. c4 {[%emt 0:00:03]} c6 {[%emt 0:00:18]} 4. Nc3 {[%emt 0:00:35]} e6 {[%emt 0:00:54]} 5. Bg5 {[%emt 0:00:22]} Nbd7 {[%emt 0:00:42]} 6. e3 {[%emt 0:01:09]} Be7 {[%emt 0:00:22]} 7. cxd5 {[%emt 0:02:30]} Nxd5 {[%emt 0:03:51]} 8. Bxe7 {[%emt 0:00:11]} Qxe7 {[%emt 0:00:39]} 9. Bd3 {[%emt 0:04:05]} O-O {[%emt 0:02:36]} 10. O-O {[%emt 0:01:43]} b6 {[%emt 0:03:40]} 11. Nxd5 {[%emt 0:13:05]} cxd5 {[%emt 0:01:39]} 12. Rc1 {[%emt 0:00:06]} e5 {[%emt 0:05:55]} 13. dxe5 {[%emt 0:05:39]} Nxe5 {[%emt 0:00:06]} 14. Nd4 {[%emt 0:00:19]} Bg4 {[%emt 0:11:25]} 15. Be2 {[%emt 0:04:48]} Qh4 {[%emt 0:16:00]} 16. Bxg4 {[%emt 0:15:19]} Nxg4 {[%emt 0:00:28]} 17. Nf3 {[%emt 0:00:23]} Qh5 {[%emt 0:01:00]} 18. Qd4 {[%emt 0:01:26]} Rfe8 {[%emt 0:01:48]} 19. Rfd1 {[%emt 0:05:27]} Nf6 {[%emt 0:01:23]} 20. Rc7 {[%emt 0:05:12]} h6 {[%emt 0:06:37]} 21. Rdc1 {[%emt 0:04:49]} Qf5 {[%emt 0:06:44]} 22. Qa4 {[%emt 0:06:06]} a6 23. Nd4 {[%emt 0:03:57]} Qe5 {[%emt 0:16:03]} 24. Qc2 {[%emt 0:02:46]} Ne4 {[%emt 0:02:19]} 25. Nf3 {[%emt 0:01:19]} Qf5 {[%emt 0:01:25]} 26. Qc6 {[%emt 0:03:32]} b5 {[%emt 0:01:29]} 27. Qd7 {[%emt 0:04:22]} Qh5 {[%emt 0:01:41]} 28. Rc8 {[%emt 0:04:26]} Nf6 {[%emt 0:00:11]} 29. Qxe8+ {[%emt 0:01:59]} Nxe8 {[%emt 0:00:15]} 30. Rxa8 {[%emt 0:00:07]} Kf8 {[%emt 0:00:46]} 31. Rcc8 1-0

[Event "V Sunway Sitges Open 2018"]
[Site "Sitges"]
[Date "2018.12.15"]
[Round "2"]
[White "Maloberti, David"]
[Black "Minko, Olga"]
[Result "1/2-1/2"]
[ECO "D23"]
[WhiteElo "2122"]
[BlackElo "1737"]
[Annotator "NA"]
[PlyCount "100"]
[EventDate "2018.12.14"]
[EventType "swiss"]
[EventCountry "ESP"]
[SourceTitle "playchess.com"]
[Source "ChessBase"]
[SourceQuality "1"]
[TimeControl "40/5400+30:1800+30"]

1. d4 {[%emt 0:00:00]} d5 {[%emt 0:00:00]} 2. c4 {[%emt 0:00:00]} dxc4 {[%emt 0:00:00]} 3. Nf3 {[%emt 0:00:00]} Nf6 {[%emt 0:00:07]} 4. Qa4+ {[%emt 0:00:25]} Nbd7 {[%emt 0:01:12]} 5. Nc3 {[%emt 0:00:32]} e6 {[%emt 0:02:20]} 6. e4 {[%emt 0:01:27]} c6 {[%emt 0:05:01]} 7. Qxc4 {[%emt 0:00:30]} a6 {[%emt 0:03:01]} 8. Bd3 {[%emt 0:04:36]} b5 {[%emt 0:02:28]} 9. Qxc6 {[%emt 0:04:23]} Ra7 {[%emt 0:12:09]} 10. Bf4 {[%emt 0:11:46]} Bb7 {[%emt 0:03:13]} 11. Qc7 {[%emt 0:00:08]} Qa8 {[%emt 0:02:09]} 12. O-O {[%emt 0:08:24]} Be7 {[%emt 0:17:22]} 13. Qa5 {[%emt 0:04:39]} Nxe4 {[%emt 0:16:05]} 14. Nxe4 {[%emt 0:14:16]} Bxe4 {[%emt 0:01:40]} 15. Bxe4 {[%emt 0:01:30]} Qxe4 {[%emt 0:00:26]} 16. Be3 {[%emt 0:00:25]} Ra8 {[%emt 0:03:28]} 17. Rac1 {[%emt 0:03:58]} O-O {[%emt 0:03:01]} 18. Qc7 {[%emt 0:00:29]} Qd5 {[%emt 0:04:51]} 19. Ne5 {[%emt 0:05:44]} Rfd8 {[%emt 0:04:56]} 20. Nc6 {[%emt 0:05:58]} Bd6 {[%emt 0:03:03]} 21. Qa5 {[%emt 0:16:22]} Rdc8 {[%emt 0:04:23]} 22. Nb4 {[%emt 0:02:01]} Bxb4 {[%emt 0:02:43]} 23. Qxb4 {[%emt 0:00:03]} Qxa2 {[%emt 0:02:14]} 24. f4 {[%emt 0:01:12]} Nb6 {[%emt 0:02:05]} 25. Rc5 {[%emt 0:00:41]} Nd5 {[%emt 0:01:03]} 26. Qd2 {[%emt 0:00:53]} Nxe3 {[%emt 0:00:19]} 27. Qxe3 {[%emt 0:00:03]} Qxb2 {[%emt 0:00:43]} 28. f5 {[%emt 0:00:07]} exf5 {[%emt 0:01:31]} 29. Re1 {[%emt 0:01:25]} g6 {[%emt 0:01:28]} 30. d5 {[%emt 0:00:19]} Rd8 {[%emt 0:00:27]} 31. Rd1 {[%emt 0:00:36]} Qf6 {[%emt 0:00:26]} 32. Rc6 {[%emt 0:00:15]} Qg7 {[%emt 0:00:39]} 33. Qc5 {[%emt 0:01:46]} f4 {[%emt 0:01:17]} 34. d6 {[%emt 0:00:11]} Qf8 {[%emt 0:00:10]} 35. Rd4 {[%emt 0:01:14]} f3 {[%emt 0:00:34]} 36. gxf3 {[%emt 0:00:10]} Rac8 {[%emt 0:00:38]} 37. Rc7 {[%emt 0:02:39]} h5 {[%emt 0:00:40]} 38. Qc6 {[%emt 0:04:19]} Rb8 {[%emt 0:00:34]} 39. d7 {[%emt 0:02:31]} b4 {[%emt 0:00:01]} 40. Rb7 {[%emt 0:00:00]} b3 {[%emt 0:00:00]} 41. Rc4 {[%emt 0:07:59]} b2 {[%emt 0:04:28]} 42. Qb6 {[%emt 0:00:26]} Rxb7 {[%emt 0:01:14]} 43. Qxb7 {[%emt 0:00:04]} Rxd7 {[%emt 0:03:50]} 44. Qxb2 {[%emt 0:00:56]} Rd1+ {[%emt 0:00:55]} 45. Kg2 {[%emt 0:00:32]} Qd8 {[%emt 0:00:30]} 46. Rc2 {[%emt 0:01:04]} Qg5+ {[%emt 0:02:20]} 47. Kh3 {[%emt 0:00:04]} Qf5+ {[%emt 0:02:45]} 48. Kg2 {[%emt 0:00:45]} Qg5+ {[%emt 0:07:10]} 49. Kh3 {[%emt 0:00:06]} Qf5+ {[%emt 0:01:45]} 50. Kg2 {[%emt 0:00:05]} Qg5+ {[%emt 0:00:51]} 1/2-1/2

[Event "V Sunway Sitges Open 2018"]
[Site "Sitges"]
[Date "2018.12.15"]
[Round "2"]
[White "Pedashenko, Anatoly"]
[Black "Martos Martin, Josep Angel"]
[Result "1-0"]
[ECO "B28"]
[WhiteElo "1985"]
[BlackElo "1831"]
[Annotator "NA"]
[PlyCount "75"]
[EventDate "2018.12.14"]
[EventType "swiss"]
[EventCountry "ESP"]
[SourceTitle "playchess.com"]
[Source "ChessBase"]
[SourceQuality "1"]
[TimeControl "40/5400+30:1800+30"]

1. e4 {[%emt 0:00:00]} c5 {[%emt 0:00:12]} 2. Nf3 {[%emt 0:00:00]} a6 {[%emt 0:00:15]} 3. b4 {[%emt 0:01:30]} cxb4 {[%emt 0:02:25]} 4. a3 {[%emt 0:00:08]} e6 {[%emt 0:04:39]} 5. axb4 {[%emt 0:00:07]} Bxb4 {[%emt 0:00:42]} 6. c3 {[%emt 0:00:08]} Be7 {[%emt 0:01:07]} 7. d4 {[%emt 0:00:04]} d6 {[%emt 0:09:11]} 8. Bd3 {[%emt 0:00:38]} Nc6 {[%emt 0:09:49]} 9. O-O {[%emt 0:03:11]} Nf6 {[%emt 0:05:52]} 10. c4 {[%emt 0:01:48]} Qb6 {[%emt 0:09:21]} 11. e5 {[%emt 0:16:55]} dxe5 {[%emt 0:05:24]} 12. dxe5 {[%emt 0:00:09]} Ng4 {[%emt 0:23:32]} 13. Qe2 {[%emt 0:06:32]} Nd4 {[%emt 0:04:25]} 14. Nxd4 {[%emt 0:01:01]} Qxd4 {[%emt 0:00:04]} 15. Bb2 {[%emt 0:00:18]} Qf4 {[%emt 0:00:38]} 16. g3 {[%emt 0:00:36]} Qg5 {[%emt 0:02:17]} 17. h3 {[%emt 0:03:42]} h5 {[%emt 0:04:48]} 18. Kg2 {[%emt 0:03:20]} Bd7 {[%emt 0:06:17]} 19. hxg4 {[%emt 0:02:00]} hxg4 {[%emt 0:00:25]} 20. Nd2 {[%emt 0:00:42]} Bb4 {[%emt 0:05:11]} 21. f4 {[%emt 0:07:16]} gxf3+ {[%emt 0:01:27]} 22. Nxf3 {[%emt 0:00:10]} Bc6 {[%emt 0:02:15]} 23. Be4 {[%emt 0:00:48]} Bxe4 {[%emt 0:00:18]} 24. Qxe4 {[%emt 0:00:13]} Qe7 {[%emt 0:00:10]} 25. Rad1 {[%emt 0:06:42]} a5 {[%emt 0:00:27]} 26. Bc1 {[%emt 0:01:16]} a4 {[%emt 0:00:30]} 27. Bg5 {[%emt 0:02:34]} Qc7 {[%emt 0:00:46]} 28. Rb1 {[%emt 0:01:26]} Qc5 {[%emt 0:00:57]} 29. Qxb7 {[%emt 0:00:39]} O-O {[%emt 0:00:13]} 30. Qxb4 {[%emt 0:00:11]} Qc6 {[%emt 0:00:28]} 31. Qb5 {[%emt 0:00:40]} Qe4 {[%emt 0:00:08]} 32. Rbe1 {[%emt 0:01:21]} Qc2+ {[%emt 0:00:26]} 33. Rf2 {[%emt 0:00:19]} Qc3 {[%emt 0:00:45]} 34. Bd2 {[%emt 0:03:44]} Qd3 {[%emt 0:00:33]} 35. Qb1 {[%emt 0:00:46]} Qxc4 {[%emt 0:00:28]} 36. Rh1 {[%emt 0:00:18]} g6 {[%emt 0:00:23]} 37. Bg5 {[%emt 0:00:17]} Rfb8 {[%emt 0:01:03]} 38. Bf6 {[%emt 0:00:25]} 1-0

[Event "V Sunway Sitges Open 2018"]
[Site "Sitges"]
[Date "2018.12.15"]
[Round "2"]
[White "Lohia, Sohum"]
[Black "Minko, Uliana"]
[Result "1-0"]
[ECO "C00"]
[WhiteElo "1686"]
[BlackElo "1303"]
[Annotator "NA"]
[PlyCount "49"]
[EventDate "2018.12.14"]
[EventType "swiss"]
[EventCountry "ESP"]
[SourceTitle "playchess.com"]
[Source "ChessBase"]
[SourceQuality "1"]
[TimeControl "40/5400+30:1800+30"]

1. e4 {[%emt 0:00:00]} e6 {[%emt 0:03:35]} 2. b3 {[%emt 0:00:16]} d5 {[%emt 0:00:25]} 3. Bb2 {[%emt 0:00:12]} c5 {[%emt 0:01:24]} 4. exd5 {[%emt 0:02:48]} exd5 {[%emt 0:00:33]} 5. Nf3 {[%emt 0:00:55]} Nf6 {[%emt 0:00:36]} 6. Bb5+ {[%emt 0:01:52]} Bd7 {[%emt 0:00:53]} 7. Bxd7+ {[%emt 0:00:36]} Nbxd7 {[%emt 0:00:18]} 8. O-O {[%emt 0:00:23]} Be7 {[%emt 0:00:08]} 9. d4 {[%emt 0:00:53]} O-O {[%emt 0:00:15]} 10. Re1 {[%emt 0:00:21]} Re8 {[%emt 0:01:16]} 11. Nc3 {[%emt 0:01:49]} a6 {[%emt 0:00:59]} 12. a4 {[%emt 0:02:06]} Bd6 {[%emt 0:04:04]} 13. Rxe8+ {[%emt 0:02:30]} Qxe8 {[%emt 0:00:14]} 14. dxc5 {[%emt 0:02:45]} d4 {[%emt 0:08:54]} 15. cxd6 {[%emt 0:04:41]} dxc3 {[%emt 0:00:24]} 16. Bxc3 {[%emt 0:00:44]} Ne4 {[%emt 0:03:16]} 17. Bb2 {[%emt 0:01:19]} f6 {[%emt 0:01:29]} 18. Qd5+ {[%emt 0:00:35]} Kh8 {[%emt 0:00:47]} 19. Re1 {[%emt 0:00:21]} Qc8 {[%emt 0:17:17]} 20. Qxe4 {[%emt 0:00:48]} b5 {[%emt 0:02:29]} 21. axb5 {[%emt 0:03:57]} axb5 {[%emt 0:00:15]} 22. Ra1 {[%emt 0:00:34]} Rb8 {[%emt 0:00:30]} 23. Ra7 {[%emt 0:00:53]} Qd8 {[%emt 0:02:29]} 24. Qe7 {[%emt 0:02:07]} Nf8 {[%emt 0:02:08]} 25. Qxg7# {[%emt 0:00:13]} 1-0

[Event "V Sunway Sitges Open 2018"]
[Site "Sitges"]
[Date "2018.12.15"]
[Round "2"]
[White "Tastambekov, Arsen"]
[Black "Chatton, Jean-Bernard"]
[Result "1/2-1/2"]
[ECO "B51"]
[WhiteElo "1271"]
[BlackElo "1643"]
[Annotator "NA"]
[PlyCount "114"]
[EventDate "2018.12.14"]
[EventType "swiss"]
[EventCountry "ESP"]
[SourceTitle "playchess.com"]
[Source "ChessBase"]
[SourceQuality "1"]
[TimeControl "40/5400+30:1800+30"]

1. e4 {[%emt 0:00:00]} c5 {[%emt 0:00:00]} 2. Nf3 {[%emt 0:00:00]} d6 {[%emt 0:00:00]} 3. Bb5+ {[%emt 0:00:38]} Nc6 {[%emt 0:01:42]} 4. O-O {[%emt 0:02:12]} Bd7 {[%emt 0:00:13]} 5. d3 {[%emt 0:01:46]} g6 {[%emt 0:00:43]} 6. Nc3 {[%emt 0:00:50]} Bg7 {[%emt 0:00:14]} 7. Be3 {[%emt 0:00:45]} Nf6 {[%emt 0:01:55]} 8. h3 {[%emt 0:00:48]} O-O {[%emt 0:00:14]} 9. Qd2 {[%emt 0:01:14]} a6 {[%emt 0:00:22]} 10. Bxc6 {[%emt 0:01:58]} Bxc6 {[%emt 0:00:22]} 11. e5 {[%emt 0:02:48]} Nd5 {[%emt 0:02:59]} 12. Nxd5 {[%emt 0:10:03]} Bxd5 {[%emt 0:01:15]} 13. exd6 {[%emt 0:05:52]} exd6 14. d4 Bxf3 {[%emt 0:05:02]} 15. gxf3 {[%emt 0:01:01]} Qc7 {[%emt 0:04:28]} 16. c3 {[%emt 0:01:44]} Rfe8 {[%emt 0:05:50]} 17. Rad1 {[%emt 0:08:16]} Rad8 {[%emt 0:04:40]} 18. Rfe1 {[%emt 0:04:14]} b5 {[%emt 0:05:06]} 19. Bg5 {[%emt 0:02:41]} Rc8 {[%emt 0:00:55]} 20. Rxe8+ {[%emt 0:10:54]} Rxe8 {[%emt 0:00:12]} 21. dxc5 {[%emt 0:01:32]} dxc5 {[%emt 0:00:16]} 22. Bf4 {[%emt 0:06:57]} Qc8 {[%emt 0:04:33]} 23. Kg2 {[%emt 0:01:53]} c4 {[%emt 0:04:33]} 24. Qc2 {[%emt 0:02:27]} Rd8 {[%emt 0:01:39]} 25. a4 {[%emt 0:06:05]} h5 {[%emt 0:06:18]} 26. axb5 {[%emt 0:01:12]} axb5 {[%emt 0:00:08]} 27. Ra1 {[%emt 0:00:32]} Rd3 {[%emt 0:03:45]} 28. Qe2 {[%emt 0:01:31]} Qc6 {[%emt 0:08:47]} 29. Bg3 {[%emt 0:04:51]} Qd5 {[%emt 0:03:57]} 30. Bf4 {[%emt 0:03:34]} Qc6 {[%emt 0:03:53]} 31. Bd2 {[%emt 0:04:16]} Qd7 {[%emt 0:01:11]} 32. Bf4 {[%emt 0:01:42]} Kh7 {[%emt 0:01:22]} 33. Be5 {[%emt 0:01:17]} Qe6 {[%emt 0:01:52]} 34. Re1 {[%emt 0:01:28]} Bxe5 {[%emt 0:04:31]} 35. Qxe5 {[%emt 0:00:10]} Qc6 {[%emt 0:02:47]} 36. Qf4 {[%emt 0:00:49]} Kg7 {[%emt 0:00:45]} 37. Qe5+ {[%emt 0:01:13]} Kh7 {[%emt 0:01:00]} 38. Qf4 {[%emt 0:00:34]} Kg7 {[%emt 0:03:29]} 39. Re7 {[%emt 0:01:00]} Qf6 {[%emt 0:02:17]} 40. Qe4 {[%emt 0:00:42]} Qg5+ {[%emt 0:03:52]} 41. Kh2 {[%emt 0:00:09]} Rd2 {[%emt 0:00:00]} 42. Qe1 {[%emt 0:06:28]} Rxb2 {[%emt 0:01:02]} 43. Re2 {[%emt 0:05:30]} Rxe2 {[%emt 0:02:33]} 44. Qxe2 {[%emt 0:00:10]} Qd5 {[%emt 0:01:34]} 45. Kg2 {[%emt 0:00:51]} Qd3 {[%emt 0:00:31]} 46. Qe5+ {[%emt 0:01:18]} Kh7 {[%emt 0:01:35]} 47. Qf6 {[%emt 0:02:00]} Kg8 {[%emt 0:01:28]} 48. Qe5 {[%emt 0:00:55]} Qd7 {[%emt 0:01:34]} 49. Qb8+ {[%emt 0:02:19]} Kg7 {[%emt 0:00:18]} 50. Qe5+ {[%emt 0:00:19]} f6 {[%emt 0:00:29]} 51. Qc5 {[%emt 0:02:01]} g5 {[%emt 0:00:38]} 52. h4 {[%emt 0:01:06]} Kg6 {[%emt 0:00:39]} 53. hxg5 {[%emt 0:00:44]} fxg5 {[%emt 0:00:04]} 54. Qb6+ {[%emt 0:00:22]} Kg7 {[%emt 0:00:26]} 55. Qc5 {[%emt 0:01:58]} Kg6 {[%emt 0:02:13]} 56. Qb6+ {[%emt 0:00:53]} Kg7 {[%emt 0:01:03]} 57. Qc5 {[%emt 0:00:32]} Kg6 {[%emt 0:04:39]} 1/2-1/2